bitfinex/quotes_ETHUSD_20250424
["timestamp","ask_amount","ask_price","bid_price","bid_amount"]
[1745503711278,0.7573,1768.1,1767.6,5.65718368]
[1745503711483,0.7573,1768.1,1767.6,11.31435106]
[1745503711724,0.7573,1768.1,1767.6,5.65716738]
[1745503711891,0.7573,1768.1,1767.5,5.65750496]
[1745503712222,5.65658743,1767.9,1767.2,5.6584596]
[1745503712419,5.65726174,1767.7,1767.1,6.799]
[1745503712621,6.44403512,1767.8,1767.1,6.799]
[1745503712820,0.7871,1767.8,1767.2,5.65850487]
[1745503713010,7.58793908,1767.8,1767.2,5.65850487]
[1745503713321,7.58793908,1767.8,1767.2,5.65854138]
[1745503713322,1.93106936,1767.8,1767.2,5.65854138]
[1745503713519,0.7871,1767.8,1767.3,5.65830753]
[1745503713725,0.7871,1767.8,1767.1,6.799]
[1745503713920,0.7871,1767.8,1767.3,5.6581771]
[1745503714089,0.7871,1767.8,1767.4,5.65796149]
[1745503714605,0.7871,1767.8,1767.3,5.65821363]
[1745503714813,0.7871,1767.8,1767.2,5.65856255]
[1745503715109,0.7871,1767.8,1767.3,5.65819434]
[1745503715315,0.7871,1767.8,1767.1,6.799]
[1745503715518,0.7871,1767.8,1767.3,5.65817168]
[1745503715701,0.7871,1767.8,1767.2,5.65837557]
[1745503716226,6.44385516,1767.8,1767.1,12.45778381]
[1745503716615,5.65726374,1767.7,1767.1,6.799]
[1745503717015,5.65677624,1767.8,1767.0,16.975]
[1745503717225,1.42369972,1767.7,1767.1,5.6589342]
[1745503717533,0.7793,1767.7,1767.0,16.975]
[1745503717762,0.7793,1767.7,1767.2,5.65856468]
[1745503718415,0.7793,1767.7,1767.2,5.65848966]
[1745503718612,0.7793,1767.7,1767.4,5.65778676]
[1745503718820,5.65616454,1768.0,1767.4,5.65778676]
[1745503719002,0.56561645,1768.0,1767.2,6.4810262]
[1745503719204,6.47340816,1768.2,1767.5,5.65740331]
[1745503719404,0.8179,1768.2,1767.7,5.65681121]
[1745503719931,0.8179,1768.2,1767.6,5.65725307]
[1745503720227,0.8179,1768.2,1767.7,5.65706042]
[1745503720907,0.8179,1768.2,1767.7,5.65685456]
[1745503721228,0.8179,1768.2,1767.9,5.65641949]
[1745503721803,0.8179,1768.2,1767.7,6.78829905]
[1745503721998,0.8179,1768.2,1767.6,5.65726534]
[1745503721999,0.8179,1768.2,1767.6,5.65715206]
[1745503722198,0.8179,1768.2,1767.7,5.657064]
[1745503722398,0.8179,1768.2,1767.7,5.65686175]
[1745503722614,0.8179,1768.2,1767.7,5.65682898]
[1745503722937,5.65596898,1768.1,1767.4,5.65786173]
[1745503723095,6.22170549,1768.0,1767.3,6.797]
[1745503723296,5.80429941,1767.9,1767.3,6.797]
[1745503723628,0.8083,1767.7,1767.0,16.975]
[1745503723934,5.65829712,1767.4,1766.9,6.558]
[1745503724133,6.43021924,1767.1,1766.5,6.558]
[1745503724294,1.97990241,1767.1,1766.5,12.21876184]
[1745503724496,0.771,1767.1,1766.5,12.21876184]
[1745503724828,0.771,1767.1,1766.8,5.65982537]
[1745503725400,0.771,1767.1,1766.6,5.66042585]
[1745503725737,0.771,1767.1,1766.7,5.66005639]
[1745503725891,0.771,1767.1,1766.7,6.22610708]
[1745503726096,0.771,1767.1,1766.9,5.65953364]
[1745503726690,0.771,1767.1,1766.8,5.65971521]
[1745503726904,5.65932425,1767.0,1766.5,6.558]
[1745503727131,0.771,1767.1,1766.5,6.558]
[1745503727307,0.771,1767.1,1766.6,5.66043208]
[1745503727508,0.771,1767.1,1766.6,11.32085779]
[1745503727715,0.771,1767.1,1766.5,6.558]
[1745503727933,0.771,1767.1,1766.6,5.66048139]
[1745503728447,0.771,1767.1,1766.6,5.66057531]
[1745503728649,1.41399585,1767.1,1766.6,5.66057531]
[1745503729345,1.41399585,1767.1,1766.6,5.66044518]
[1745503729551,1.41399585,1767.1,1766.5,12.21869892]
[1745503729552,0.771,1767.1,1766.5,12.21869892]
[1745503729758,0.771,1767.1,1766.5,6.558]
[1745503729910,0.771,1767.1,1766.8,5.65968804]
[1745503730109,0.771,1767.1,1766.6,5.66059096]
[1745503730314,6.43011656,1767.1,1766.5,6.558]
[1745503730523,0.64301166,1767.0,1766.5,6.558]
[1745503731423,5.65973952,1766.9,1766.3,16.969]
[1745503731642,5.66104009,1766.5,1765.9,6.559]
[1745503731843,6.44816581,1766.6,1765.9,6.559]
[1745503732072,6.30595419,1766.5,1765.9,6.559]
[1745503732236,0.64481658,1766.5,1766.0,5.6625089]
[1745503732442,0.7874,1766.6,1765.9,6.559]
[1745503732676,0.7874,1766.6,1766.3,5.6613885]
[1745503732847,0.7874,1766.6,1766.5,5.6609114]
[1745503733039,0.8005,1766.9,1766.6,5.66037463]
[1745503733240,0.8005,1766.9,1766.4,5.66100532]
[1745503733492,0.8005,1766.9,1766.6,5.66058703]
[1745503733772,0.8005,1766.9,1766.2,5.66180353]
[1745503733953,1.38014994,1766.9,1766.3,5.66154811]
[1745503734155,0.8005,1766.9,1766.5,5.66074188]
[1745503734545,0.8005,1766.9,1766.4,5.66106923]
[1745503734942,0.8005,1766.9,1766.1,6.56]
[1745503735148,0.8005,1766.9,1766.4,5.66103965]
[1745503735661,1.44649507,1766.9,1766.1,17.88422354]
[1745503735862,0.8005,1766.9,1766.4,5.66110903]
[1745503736785,0.8005,1766.9,1766.3,5.66141132]
[1745503736786,0.8005,1766.9,1766.3,5.66138927]
[1745503737076,0.8005,1766.9,1766.4,5.66111004]
[1745503737256,5.66027056,1766.7,1766.1,6.56]
[1745503737462,0.8082,1766.5,1766.1,6.56]
[1745503737673,5.66145829,1766.4,1765.7,12.22427586]
[1745503737845,0.7578,1766.4,1765.8,5.66292011]
[1745503738249,0.7578,1766.4,1766.0,5.66239533]
[1745503738458,0.7578,1766.4,1765.8,5.66297916]
[1745503738775,1.39967145,1766.4,1766.0,5.66240036]
[1745503738970,0.7578,1766.4,1766.0,5.66240036]
[1745503739179,0.7578,1766.4,1765.9,5.6628141]
[1745503739384,0.7578,1766.4,1766.0,5.66249082]
[1745503739792,0.7578,1766.4,1765.9,5.66261938]
[1745503739993,0.7578,1766.4,1765.7,6.561]
[1745503740171,0.7578,1766.4,1766.1,5.66198323]
[1745503740481,0.8198,1766.7,1766.6,5.66059096]
[1745503740655,0.8198,1767.1,1766.6,5.66059096]
[1745503740846,0.8198,1767.1,1766.4,5.66121261]
[1745503741046,0.8198,1767.1,1766.7,5.65998715]
[1745503741247,6.4789071,1767.1,1766.3,3.7823]
[1745503741450,0.64789071,1767.0,1766.5,5.66072476]
[1745503741677,0.8198,1767.1,1766.5,5.66072476]
[1745503742828,0.8172,1767.1,1766.3,6.561]
[1745503742948,5.6600561,1766.8,1766.3,6.561]
[1745503743147,0.8172,1766.7,1766.3,6.561]
[1745503743354,0.8172,1766.7,1766.3,12.222292]
[1745503743566,0.8172,1766.7,1766.4,5.6611345]
[1745503743768,0.8172,1766.7,1766.5,5.66087452]
[1745503743993,0.8172,1766.7,1766.4,5.66098918]
[1745503744150,0.8172,1766.7,1766.3,6.561]
[1745503745489,0.8172,1766.7,1766.4,5.66112013]
[1745503745651,0.8172,1766.7,1766.4,5.6610509]
[1745503746051,0.8172,1766.7,1766.3,12.22241592]
[1745503746052,0.8172,1766.7,1766.3,6.561]
[1745503746282,1.46491871,1766.7,1766.3,6.561]
[1745503746612,1.46491871,1766.7,1766.5,5.66074622]
[1745503746613,0.8172,1766.7,1766.5,5.66074622]
[1745503746923,0.7697,1767.2,1766.6,5.66059096]
[1745503747076,6.42850308,1767.2,1766.5,5.66074622]
[1745503747281,6.42850308,1767.2,1766.6,5.66054219]
[1745503747485,0.64285031,1767.1,1766.5,5.66074053]
[1745503747683,6.30186272,1767.1,1766.5,5.66074053]
[1745503748020,6.30186272,1767.1,1766.5,5.66070814]
[1745503748021,0.64285031,1767.1,1766.5,5.66070814]
[1745503748223,0.7697,1767.2,1766.6,5.6604188]
[1745503748426,6.42852224,1767.2,1766.5,5.66060195]
[1745503748726,0.827,1767.0,1766.3,6.561]
[1745503749014,0.827,1766.7,1766.3,6.561]
[1745503749240,0.827,1766.7,1766.3,12.2223945]
[1745503749401,0.827,1766.7,1766.3,6.561]
[1745503749708,0.827,1766.7,1766.3,12.22243506]
[1745503750099,0.827,1766.7,1766.3,17.88373821]
[1745503750423,0.7828,1767.0,1766.9,5.65962986]
[1745503750621,6.561,1767.8,1767.0,5.65925151]
[1745503750805,5.65775705,1767.5,1766.9,5.65948121]
[1745503751117,0.7814,1767.5,1767.2,5.65848939]
[1745503751418,0.7814,1767.5,1767.1,5.65879333]
[1745503751620,0.7814,1767.5,1766.9,5.65962243]
[1745503751822,0.7814,1767.5,1767.2,5.65848349]
[1745503752499,0.7814,1767.5,1767.0,11.31824408]
[1745503752698,0.7814,1767.5,1767.0,5.65910238]
[1745503752900,5.65817019,1767.4,1766.8,6.561]
[1745503753521,6.43927717,1767.5,1766.8,12.22081844]
[1745503753824,0.64392772,1767.4,1766.8,12.22070774]
[1745503754124,0.7564,1767.3,1766.8,6.561]
[1745503754331,0.7564,1767.3,1766.8,12.22090485]
[1745503755118,0.7564,1767.3,1766.8,12.22074548]
[1745503755429,0.7564,1767.3,1767.0,5.65918109]
[1745503755599,0.7564,1767.3,1766.9,5.65944298]
[1745503755796,0.7564,1767.3,1766.8,6.561]
[1745503756234,0.7564,1767.3,1767.0,5.65917344]
[1745503756935,0.7564,1767.3,1766.9,5.65941189]
[1745503757536,0.7564,1767.3,1766.8,406.561]
[1745503757736,5.65949875,1767.0,1766.8,400.0]
[1745503757937,0.56594988,1766.9,1766.8,400.0]
[1745503758229,0.7862,1766.9,1766.8,400.0]
[1745503758591,0.7862,1766.9,1766.8,405.65995019]
[1745503758791,0.7862,1766.9,1766.8,400.0]
[1745503760301,0.7901,1767.2,1766.8,400.0]
[1745503760496,1.4349632,1767.2,1766.8,400.0]
[1745503760699,0.7901,1767.2,1766.8,400.0]
[1745503761336,0.8079,1767.6,1767.0,5.65918887]
[1745503761633,0.8079,1767.6,1767.1,5.65871127]
[1745503761837,0.8079,1767.6,1767.1,5.65885432]
[1745503762035,0.8079,1767.6,1767.2,5.65853003]
[1745503762399,0.8079,1767.6,1767.4,5.65795224]
[1745503762749,0.7523,1768.6,1767.5,5.81059941]
[1745503762912,0.7523,1768.6,1768.2,5.65524259]
[1745503763112,0.7523,1768.6,1768.3,5.65499879]
[1745503763310,0.7523,1768.6,1768.4,5.65469027]
[1745503763499,0.7523,1768.6,1768.1,12.01466664]
[1745503763699,0.7523,1768.6,1768.2,5.6552274]
[1745503763931,0.7523,1768.6,1768.3,5.65497373]
[1745503764131,0.7523,1768.6,1768.0,12.0149853]
[1745503764435,0.7523,1768.6,1768.2,5.65542894]
[1745503764815,0.7523,1768.6,1768.2,5.65545153]
[1745503765541,0.7523,1768.6,1768.2,5.65521538]
[1745503766040,0.7523,1768.6,1768.2,5.655456]
[1745503766545,0.7523,1768.6,1768.0,8.12612758]
[1745503766702,0.7523,1768.6,1768.3,5.65504205]
[1745503766909,0.7523,1768.6,1768.2,5.65527314]
[1745503767100,0.7523,1768.6,1768.3,5.65513379]
[1745503767307,0.7523,1768.6,1768.2,5.65529568]
[1745503767820,0.7523,1768.6,1768.1,6.46825899]
[1745503768020,0.7523,1768.6,1768.1,6.46825366]
[1745503768218,6.4065042,1768.6,1768.0,6.359]
[1745503768413,0.7523,1768.6,1768.1,5.65551195]
[1745503768610,0.7523,1768.6,1768.0,6.359]
[1745503768810,0.7523,1768.6,1768.1,5.65555594]
[1745503769025,0.7523,1768.6,1768.0,6.359]
[1745503769227,1.39293566,1768.6,1768.0,6.359]
[1745503769549,0.7523,1768.6,1768.0,12.01486388]
[1745503769935,0.7523,1768.6,1768.2,5.65522854]
[1745503770132,0.7523,1768.6,1768.3,5.65501152]
[1745503770451,0.8215,1768.9,1768.3,5.65501152]
[1745503770652,0.8215,1768.9,1768.5,5.65431817]
[1745503770827,0.4129318,1769.0,1768.6,3.0]
[1745503771029,0.4129318,1769.0,1768.9,5.65323082]
[1745503771543,0.4129318,1769.0,1768.9,6.356]
[1745503772228,0.4129318,1769.0,1768.8,12.00833728]
[1745503772468,0.4129318,1769.0,1768.8,6.355]
[1745503772618,0.4129318,1769.0,1768.5,18.09891064]
[1745503772940,0.4129318,1769.0,1768.6,6.355]
[1745503773138,1.09911872,1769.0,1768.6,6.355]
[1745503773313,6.75213741,1769.0,1768.5,23.323]
[1745503773515,6.75213741,1769.0,1768.5,16.968]
[1745503773750,1.09911872,1769.0,1768.2,0.8055]
[1745503773917,5.6532715,1768.9,1768.3,12.00992568]
[1745503774130,0.4129318,1769.0,1768.4,5.65467467]
[1745503774332,6.06592868,1769.0,1768.3,6.355]
[1745503774533,5.65343487,1768.9,1768.3,6.355]
[1745503774733,6.06600412,1769.0,1768.3,12.0100062]
[1745503774938,0.60660041,1768.9,1768.3,12.0100062]
[1745503775619,0.60660041,1768.9,1768.3,12.00998241]
[1745503775862,6.06589923,1769.0,1768.4,5.65464381]
[1745503776152,0.4129318,1769.0,1768.4,5.65464381]
[1745503776467,0.4129318,1769.0,1768.3,12.01000746]
[1745503776756,0.4129318,1769.0,1768.5,5.65447175]
[1745503776961,0.4129318,1769.0,1768.5,5.65423383]
[1745503777876,0.0013017,1768.9,1768.4,5.65465816]
[1745503778157,0.0013017,1768.9,1768.5,6.354]
[1745503778455,0.60803792,1768.9,1768.5,6.354]
[1745503778656,6.26134683,1768.9,1768.5,6.354]
[1745503778953,0.8171,1768.7,1768.5,6.354]
[1745503779153,0.8171,1768.7,1768.2,12.00944042]
[1745503779457,0.8171,1768.7,1768.2,12.00925412]
[1745503779656,0.8171,1768.7,1768.3,5.65514728]
[1745503779858,0.8171,1768.7,1768.3,5.65507832]
[1745503780017,0.8171,1768.7,1768.4,5.65472267]
[1745503780217,0.0013017,1768.9,1768.4,5.65460893]
[1745503780452,0.60803106,1768.9,1768.3,5.6549319]
[1745503780670,0.60803106,1768.9,1768.3,5.65491987]
[1745503781162,0.60803106,1768.9,1768.4,5.65480578]
[1745503781361,0.0013017,1768.9,1768.3,5.65514901]
[1745503781521,0.0013017,1768.9,1768.5,5.6543041]
[1745503782066,0.0013017,1768.9,1768.3,12.00794941]
[1745503782436,5.65458233,1768.9,1768.3,12.00792876]
[1745503782650,0.0013017,1768.9,1768.4,5.6547625]
[1745503782828,0.0013017,1768.9,1768.5,5.65444822]
[1745503783168,0.0013017,1768.9,1768.6,5.6539275]
[1745503783529,0.0013017,1768.9,1768.7,5.65360786]
[1745503784370,0.0013017,1768.9,1768.8,11.88055042]
[1745503785466,0.0013017,1768.9,1768.8,20.62610043]
[1745503785649,1e-08,1768.9,1768.8,20.62610043]
[1745503785849,0.4129318,1769.0,1768.9,5.65323082]
[1745503786086,0.4129318,1769.0,1768.9,11.28116395]
[1745503788570,0.4129318,1769.0,1768.9,17.50716395]
[1745503788889,0.4129318,1769.0,1768.9,11.87923082]
[1745503789659,0.2965318,1769.0,1768.9,11.87923082]
[1745503790596,0.8167,1769.9,1769.4,5.65144022]
[1745503790795,0.8167,1769.9,1769.4,6.226]
[1745503790959,1.46336356,1769.9,1769.4,6.226]
[1745503791160,7.11340608,1769.9,1769.4,6.226]
[1745503791397,7.1134576,1769.9,1769.4,6.226]
[1745503791817,0.8002,1770.5,1769.5,0.7896]
[1745503791964,6.44857148,1770.5,1769.5,0.7896]
[1745503792165,6.44857148,1770.5,1769.8,5.65009816]
[1745503792505,6.44857148,1770.5,1769.9,6.226]
[1745503792506,5.64875435,1770.4,1769.9,6.226]
[1745503792809,0.9129318,1770.7,1770.1,5.64939833]
[1745503793109,0.9129318,1770.7,1770.6,5.647803]
[1745503793298,0.9129318,1770.7,1770.6,6.226]
[1745503793499,0.9129318,1770.7,1770.6,11.873803]
[1745503796183,0.82,1772.3,1770.7,0.7838]
[1745503796383,5.64129564,1772.7,1771.0,5.64633769]
[1745503796384,0.7787,1771.6,1771.0,5.64633769]
[1745503796602,0.7787,1771.6,1770.8,0.7838]
[1745503796798,0.7787,1771.6,1770.9,5.64658499]
[1745503797109,0.7787,1771.6,1771.3,5.64557029]
[1745503797311,0.7787,1771.6,1771.1,6.223]
[1745503797808,0.7787,1771.6,1771.1,11.86905182]
[1745503798010,0.7787,1771.6,1771.1,6.223]
[1745503798218,0.7787,1771.6,1770.8,5.64697132]
[1745503798219,5.64524046,1771.5,1770.8,5.64697132]
[1745503798372,0.56452405,1771.4,1770.7,6.223]
[1745503798568,0.7787,1771.6,1770.5,0.8262]
[1745503798773,5.64529897,1771.4,1770.7,5.64748404]
[1745503799011,11.86681466,1771.9,1770.6,6.223]
[1745503799012,6.44800945,1771.2,1770.6,6.223]
[1745503799308,0.8019,1771.2,1770.7,5.64737683]
[1745503799507,0.2072594,1771.1,1770.8,5.64712385]
[1745503799684,0.2072594,1771.1,1770.8,5.64711767]
[1745503799879,0.8019,1771.2,1770.8,5.64701462]
[1745503800082,0.8019,1772.0,1771.1,6.47223132]
[1745503800287,5.64379593,1771.9,1771.1,7.0472]
[1745503800481,5.64379593,1771.9,1771.2,5.64579543]
[1745503800699,5.64410013,1771.8,1771.1,12.69321046]
[1745503800892,5.64429643,1771.7,1771.1,6.221]
[1745503801205,0.56442964,1771.6,1771.1,6.221]
[1745503801415,6.44602558,1771.8,1771.1,11.86719626]
[1745503801619,5.6451797,1771.5,1771.1,6.221]
[1745503801821,0.7847,1771.3,1771.1,6.221]
[1745503801973,0.7847,1771.3,1770.7,11.86824916]
[1745503802180,5.64607012,1771.2,1770.7,6.221]
[1745503802423,5.64702407,1770.9,1770.3,11.86872243]
[1745503802623,0.8129,1770.4,1769.4,0.763]
[1745503803005,5.64921653,1770.2,1769.4,6.41445081]
[1745503803149,6.4615544,1770.4,1769.4,0.763]
[1745503803366,6.46147003,1770.4,1769.4,0.763]
[1745503803557,5.64876819,1770.3,1769.6,5.65083365]
[1745503803854,6.4614613,1770.4,1769.4,6.983]
[1745503804062,5.64890167,1770.3,1769.6,5.65067553]
[1745503804216,5.64890167,1770.3,1769.7,5.65067316]
[1745503804407,5.64890167,1770.3,1769.6,5.65079905]
[1745503804612,0.783,1769.9,1769.4,6.22]
[1745503804854,0.1850885,1769.8,1769.4,6.22]
[1745503805019,0.783,1769.4,1768.8,12.64336577]
[1745503805220,0.16753278,1769.3,1768.7,5.65374921]
[1745503805527,0.16753278,1769.3,1768.9,5.6532182]
[1745503805858,0.16753278,1769.3,1769.0,0.56532182]
[1745503805859,5.81950022,1769.3,1769.0,0.56532182]
[1745503806156,0.16753278,1769.3,1768.4,6.99]
[1745503806356,5.65239294,1769.2,1768.5,5.65437618]
[1745503806511,0.16753278,1769.3,1768.4,6.99]
[1745503806710,0.15352059,1769.1,1768.7,5.65383232]
[1745503806953,0.15023198,1769.2,1768.8,0.56538323]
[1745503807129,0.15017012,1769.0,1768.9,5.65323082]
[1745503807330,6.474628,1769.7,1769.0,5.65271773]
[1745503807515,5.65113144,1769.6,1768.9,5.65298389]
[1745503807720,5.65113144,1769.6,1768.6,10.62084732]
[1745503807721,0.15018538,1769.6,1769.1,5.65240919]
[1745503808127,5.8012453,1769.6,1768.9,5.65311043]
[1745503808355,0.7774,1769.4,1768.5,6.221]
[1745503808554,0.7774,1769.4,1768.1,0.5]
[1745503808555,5.65374079,1768.8,1768.1,7.5401]
[1745503808726,5.65308087,1769.0,1768.1,7.5401]
[1745503809056,5.80549902,1768.9,1768.2,5.65540801]
[1745503809218,5.65367256,1768.8,1768.1,13.1956842]
[1745503809419,0.15186631,1768.7,1768.2,1.31956842]
[1745503809643,0.7774,1769.1,1768.3,5.65502129]
[1745503809644,5.65316635,1769.0,1768.3,5.65502129]
[1745503809844,0.1488646,1768.9,1768.3,5.65497658]
[1745503810173,0.1488646,1768.9,1768.2,1.31956842]
[1745503810503,5.65313465,1769.0,1768.3,5.65493711]
[1745503810750,5.80232988,1768.8,1768.2,1.31956842]
[1745503810956,6.21857207,1768.9,1768.2,1.31956842]
[1745503810957,0.14875053,1768.9,1768.4,5.65461021]
[1745503811148,0.14874544,1768.7,1768.2,7.54156842]
[1745503811451,0.7774,1769.1,1768.3,5.72112104]
[1745503811664,4.9669642,1769.7,1768.9,5.65319266]
[1745503811665,0.7978,1769.6,1768.9,5.65319266]
[1745503811815,0.14865269,1769.5,1768.8,5.6535321]
[1745503812136,0.7978,1769.6,1769.3,5.65182434]
[1745503812456,0.14870948,1769.5,1769.4,5.65150684]
[1745503812617,0.7864,1769.9,1769.2,6.224]
[1745503812818,0.15149937,1769.8,1769.2,6.8464]
[1745503813054,0.15149937,1769.8,1769.7,5.65067525]
[1745503813427,0.7714,1770.4,1769.9,5.65000933]
[1745503813628,0.13888574,1770.3,1769.9,6.40573022]
[1745503813828,0.7714,1770.8,1769.9,0.7557]
[1745503814143,0.12649427,1770.7,1770.2,5.64895499]
[1745503814357,0.12649427,1770.7,1770.3,5.64875342]
[1745503814559,0.12649427,1770.7,1770.0,6.375]
[1745503814560,0.12649427,1770.7,1770.1,5.64939833]
[1745503814896,0.12649427,1770.7,1770.0,12.02467941]
[1745503814897,5.77417993,1770.7,1770.0,12.02467941]
[1745503815177,1.34578385,1770.7,1770.1,5.64915588]
[1745503815389,0.12649427,1770.7,1770.0,6.375]
[1745503815534,5.6482522,1770.5,1769.7,5.65067525]
[1745503815733,0.12649427,1770.7,1770.0,5.64948892]
[1745503815935,0.12647988,1770.4,1770.0,5.64967261]
[1745503816172,0.7714,1770.8,1770.0,0.56496726]
[1745503816402,0.12647734,1770.3,1770.0,5.64948001]
[1745503816693,5.64808104,1770.6,1769.9,5.65000688]
[1745503816903,0.7714,1770.8,1769.6,0.7899]
[1745503817171,0.8109,1769.8,1769.0,6.375]
[1745503817377,5.65164141,1769.4,1768.8,0.7529]
[1745503817671,0.12013906,1769.3,1768.9,5.65310617]
[1745503817873,3.0,1770.0,1768.8,5.65354645]
[1745503817874,0.8109,1770.2,1769.2,5.65227221]
[1745503818169,5.76957136,1770.1,1769.4,5.65133198]
[1745503818372,0.12016182,1770.1,1769.1,0.7529]
[1745503818531,0.12016182,1770.1,1769.5,5.65109443]
[1745503818733,5.64920672,1770.2,1769.5,5.65109129]
[1745503818969,0.12016097,1770.0,1769.5,6.78135283]
[1745503819176,5.76957693,1770.1,1769.5,1.13026154]
[1745503819376,6.46377316,1770.5,1769.5,5.65111068]
[1745503819377,0.12015843,1769.9,1769.5,5.65111068]
[1745503819575,0.12015589,1769.8,1769.6,5.65078899]
[1745503819948,5.64855312,1770.4,1769.4,5.65163041]
[1745503820274,5.64921458,1770.2,1769.5,5.65107844]
[1745503820473,0.12016351,1770.1,1769.1,6.40545792]
[1745503820674,0.7597,1770.0,1769.4,5.65148273]
[1745503820875,5.7730975,1769.9,1769.3,5.65180512]
[1745503821065,0.12294012,1769.9,1769.3,5.65180512]
[1745503821263,5.65047325,1769.8,1769.2,0.64054579]
[1745503821469,0.12294012,1769.9,1769.2,0.64054579]
[1745503821877,0.12294012,1769.9,1769.6,5.65068763]
[1745503822077,0.12294012,1769.9,1769.2,6.29265027]
[1745503822262,0.77618702,1769.9,1769.1,5.65247269]
[1745503822606,0.77618702,1769.9,1769.0,12.59206995]
[1745503822607,5.65050904,1769.8,1769.2,5.65223684]
[1745503822778,0.12294012,1769.9,1769.0,6.93931062]
[1745503822985,5.77311308,1769.9,1769.0,6.93931062]
[1745503823302,5.77311308,1769.9,1769.1,5.65247101]
[1745503823303,0.12294012,1769.9,1769.1,5.65247101]
[1745503823502,5.77314194,1769.9,1769.2,5.65203417]
[1745503823796,6.99142116,1769.9,1769.2,12.43455534]
[1745503824004,5.65207395,1769.3,1768.6,12.02906745]
[1745503824169,6.42459422,1769.1,1768.4,5.65463706]
[1745503824364,0.10863457,1769.0,1768.4,5.65463706]
[1745503824571,0.10863457,1769.0,1768.5,5.65434499]
[1745503824784,0.10863457,1769.0,1768.5,6.7852452]
[1745503824981,5.76154807,1769.0,1768.5,1.13090021]
[1745503825179,5.65347573,1768.9,1768.3,6.40924478]
[1745503825379,0.1086169,1768.8,1768.3,6.40924478]
[1745503825605,5.65324452,1768.9,1768.3,0.75415684]
[1745503825806,0.10861435,1768.7,1768.4,5.6548156]
[1745503825966,5.65356155,1768.8,1768.3,0.75415684]
[1745503826167,0.10861435,1768.7,1768.2,6.375]
[1745503826375,0.7716,1768.6,1768.2,6.375]
[1745503826584,0.7716,1768.6,1768.2,12.0302462]
[1745503826788,0.10861894,1768.5,1768.2,12.0302462]
[1745503827009,0.7716,1768.6,1768.3,5.65509288]
[1745503827170,0.7716,1768.6,1768.2,6.375]
[1745503828079,6.42589632,1768.6,1768.2,6.375]
[1745503828295,0.7716,1768.6,1768.1,0.5]
[1745503828491,0.7716,1768.6,1768.2,5.65530411]
[1745503828895,0.7716,1768.6,1768.1,6.15565618]
[1745503829095,0.7716,1768.6,1768.1,6.15557306]
[1745503829274,0.7716,1768.6,1768.2,5.65529033]
[1745503829475,0.7716,1768.6,1768.2,5.65523921]
[1745503829701,0.7716,1768.6,1768.3,5.6550074]
[1745503829889,0.7716,1768.6,1768.2,6.83632654]
[1745503830084,0.7716,1768.6,1768.2,1.18108733]
[1745503830284,0.7716,1768.6,1768.1,0.5]
[1745503830497,0.7716,1768.6,1768.1,6.1557699]
[1745503830816,0.7716,1768.6,1768.1,0.5]
[1745503831011,6.40886883,1768.2,1768.1,0.5]
[1745503831309,10.62034143,1768.9,1768.1,6.15562594]
[1745503831474,5.65387291,1768.7,1768.1,6.15561135]
[1745503831675,6.40712965,1768.8,1768.1,6.15567226]
[1745503831999,6.40710911,1768.8,1768.1,9.15554608]
[1745503832201,5.65401376,1768.7,1768.1,9.15554608]
[1745503832408,5.65401376,1768.7,1768.1,3.5]
[1745503832705,5.65453395,1768.5,1768.1,0.5]
[1745503832867,0.7807,1768.4,1768.1,0.5]
[1745503833073,0.7807,1768.4,1768.3,5.65514901]
[1745503833266,0.7807,1768.4,1768.2,5.65526848]
[1745503833804,0.7807,1768.4,1768.1,0.5]
[1745503834783,7.07930401,1768.4,1768.1,0.5]
[1745503834984,0.7807,1768.4,1768.1,0.5]
[1745503835371,5.65528684,1768.3,1768.1,0.5]
[1745503835576,6.43569717,1768.4,1768.1,0.5]
[1745503835771,6.43578313,1768.4,1768.1,0.5]
[1745503836009,0.7807,1768.4,1768.1,0.5]
[1745503836585,6.43555451,1768.4,1768.1,0.5]
[1745503836792,5.6552629,1768.3,1768.1,0.5]
[1745503836993,5.65546883,1768.2,1768.1,0.5]
[1745503837682,6.48296883,1768.2,1768.1,0.5]
[1745503837883,0.8275,1767.8,1766.8,400.0]
[1745503838085,0.8275,1767.8,1767.2,0.7931]
[1745503838296,0.8275,1767.8,1767.6,5.65707463]
[1745503838514,0.8275,1767.8,1767.6,3.0]
[1745503838735,0.8275,1767.8,1767.3,6.379]
[1745503839031,6.48444853,1767.8,1767.1,3.0]
[1745503839187,6.48427083,1767.8,1767.1,6.52473062]
[1745503839584,5.65709165,1767.7,1767.1,0.86591181]
[1745503839788,5.65750044,1767.6,1766.9,28.99343584]
[1745503840105,0.8275,1767.8,1767.1,3.0]
[1745503840303,0.8275,1767.8,1767.2,5.65847328]
[1745503840498,0.8275,1767.8,1767.5,5.65768689]
[1745503840737,10.6225693,1768.2,1767.6,5.65726689]
[1745503840738,0.7615,1768.1,1767.6,5.65726689]
[1745503840935,5.65614711,1768.0,1767.3,5.65820356]
[1745503841260,0.7615,1768.1,1767.6,5.65726619]
[1745503841448,0.7615,1768.1,1767.7,5.65701807]
[1745503842039,0.7615,1768.1,1767.3,8.65827154]
[1745503842379,0.7615,1768.1,1767.7,5.65690327]
[1745503842675,0.7615,1768.1,1767.9,5.65622205]
[1745503842840,0.7615,1768.1,1767.8,6.22222291]
[1745503843041,0.8149,1768.4,1768.0,5.65610859]
[1745503843221,0.8149,1768.4,1768.1,5.65559818]
[1745503843429,0.8149,1768.4,1768.0,5.65592953]
[1745503843761,0.8149,1768.4,1768.0,1.13122183]
[1745503843969,0.8149,1768.4,1767.8,6.22230434]
[1745503844135,6.46988989,1768.4,1767.5,5.65770862]
[1745503844464,5.65518273,1768.3,1767.7,5.65676787]
[1745503844874,0.8149,1768.4,1767.5,5.65770862]
[1745503845059,6.46983373,1768.4,1767.8,5.65663473]
[1745503845260,0.8149,1768.4,1767.9,5.65631454]
[1745503845439,0.8149,1768.4,1768.0,0.56563145]
[1745503845634,6.46978344,1768.4,1768.0,0.56563145]
[1745503845862,5.6551738,1768.3,1767.7,5.65694755]
[1745503846036,5.65624708,1768.0,1767.4,12.03891605]
[1745503846373,5.65685628,1767.8,1767.2,5.65854694]
[1745503846551,6.41426162,1767.9,1767.3,5.65831453]